[Event "Early-Titled-Tuesday-Blitz-October-17-2023"]
[Site "Chess.com"]
[Date "2023.10.17"]
[Round "8"]
[White "Emp3rador"]
[Black "lamomiajunior"]
[Result "0-1"]
[WhiteElo "2547"]
[BlackElo "2731"]
[TimeControl "180+1"]
[EndTime "9:31:25 PDT"]
[Termination "lamomiajunior won by resignation"]

1. e4 {[%clk 0:03:00.9]} 1... c6 {[%clk 0:03:00.1]} 2. d4 {[%clk 0:03:01.1]}
2... d5 {[%clk 0:03:00.5]} 3. exd5 {[%clk 0:03:02]} 3... cxd5 {[%clk 0:03:00.8]}
4. Bd3 {[%clk 0:03:02.6]} 4... Nc6 {[%clk 0:03:00.6]} 5. c3 {[%clk 0:03:02.9]}
5... Nf6 {[%clk 0:03:01.2]} 6. h3 {[%clk 0:03:03.2]} 6... g6 {[%clk 0:02:55.9]}
7. Qc2 {[%clk 0:03:03.1]} 7... Bg7 {[%clk 0:02:56.8]} 8. Nf3 {[%clk 0:03:03.4]}
8... O-O {[%clk 0:02:57.5]} 9. O-O {[%clk 0:03:03.7]} 9... Bd7 {[%clk 0:02:58]}
10. Bf4 {[%clk 0:02:56.3]} 10... Rc8 {[%clk 0:02:58.5]} 11. a3 {[%clk
0:02:55.1]} 11... e6 {[%clk 0:02:57.8]} 12. Nbd2 {[%clk 0:02:49]} 12... Qb6
{[%clk 0:02:55]} 13. Rfe1 {[%clk 0:02:43.5]} 13... Na5 {[%clk 0:02:51.5]} 14. a4
{[%clk 0:02:37.2]} 14... Nc4 {[%clk 0:02:40.3]} 15. Nb3 {[%clk 0:02:02.8]} 15...
Qd8 {[%clk 0:02:19.8]} 16. Nc5 {[%clk 0:01:55.6]} 16... Bc6 {[%clk 0:02:16.2]}
17. b3 {[%clk 0:01:49]} 17... Nd6 {[%clk 0:01:58]} 18. Ne5 {[%clk 0:01:39.6]}
18... b6 {[%clk 0:01:57]} 19. Na6 {[%clk 0:01:37.1]} 19... Bb7 {[%clk
0:01:54.8]} 20. Rac1 {[%clk 0:01:16]} 20... Nde4 {[%clk 0:01:52.5]} 21. Qb2
{[%clk 0:01:10.8]} 21... Nh5 {[%clk 0:01:33.7]} 22. Bh2 {[%clk 0:01:06.2]} 22...
Qg5 {[%clk 0:01:27.7]} 23. Nf3 {[%clk 0:00:53.5]} 23... Qe7 {[%clk 0:01:23.4]}
24. Ne5 {[%clk 0:00:38.4]} 24... Rfd8 {[%clk 0:01:14]} 25. f3 {[%clk 0:00:36.2]}
25... Nd6 {[%clk 0:01:12.6]} 26. Nb4 {[%clk 0:00:36]} 26... Nf5 {[%clk
0:01:12.4]} 27. Nc2 {[%clk 0:00:34.3]} 27... Qg5 {[%clk 0:01:11.4]} 28. g4
{[%clk 0:00:14.9]} 28... Nh4 {[%clk 0:01:05.5]} 29. Rf1 {[%clk 0:00:10.5]} 29...
Nf4 {[%clk 0:01:04.9]} 30. Bxf4 {[%clk 0:00:03.2]} 30... Qxf4 {[%clk 0:01:05]}
31. Ne1 {[%clk 0:00:03.9]} 31... f6 {[%clk 0:00:59.2]} 32. Qf2 {[%clk
0:00:02.5]} 32... Qxc1 {[%clk 0:00:54.7]} 33. Qxh4 {[%clk 0:00:02.8]} 33... fxe5
{[%clk 0:00:55.1]} 34. Ng2 {[%clk 0:00:03.3]} 34... Qxc3 {[%clk 0:00:54.7]} 0-1

[Event "Early-Titled-Tuesday-Blitz-October-17-2023"]
[Site "Chess.com"]
[Date "2023.10.17"]
[Round "8"]
[White "K_A_S_T_O_R"]
[Black "kingofthenil"]
[Result "1-0"]
[WhiteElo "2873"]
[BlackElo "2736"]
[TimeControl "180+1"]
[EndTime "9:31:30 PDT"]
[Termination "K_A_S_T_O_R won by resignation"]

1. e4 {[%clk 0:03:00.9]} 1... Nc6 {[%clk 0:03:00.1]} 2. Nf3 {[%clk 0:03:00.4]}
2... d5 {[%clk 0:03:00.8]} 3. Nc3 {[%clk 0:02:56.1]} 3... dxe4 {[%clk
0:03:00.9]} 4. Nxe4 {[%clk 0:02:56.4]} 4... Qd5 {[%clk 0:03:01.6]} 5. d3 {[%clk
0:02:55.3]} 5... Nf6 {[%clk 0:03:00.8]} 6. Nxf6+ {[%clk 0:02:50.1]} 6... gxf6
{[%clk 0:03:01.7]} 7. c4 {[%clk 0:02:48.3]} 7... Qh5 {[%clk 0:02:59.2]} 8. Be2
{[%clk 0:02:47.5]} 8... Rg8 {[%clk 0:02:59.5]} 9. Ng5 {[%clk 0:02:35.6]} 9...
Qh4 {[%clk 0:02:34.4]} 10. g3 {[%clk 0:02:34.7]} 10... Qd4 {[%clk 0:02:35.1]}
11. Nf3 {[%clk 0:02:35.1]} 11... Qd6 {[%clk 0:02:23.3]} 12. d4 {[%clk
0:02:34.9]} 12... Bh3 {[%clk 0:02:15.8]} 13. d5 {[%clk 0:02:30.6]} 13... Ne5
{[%clk 0:02:09.8]} 14. Qb3 {[%clk 0:02:12.3]} 14... O-O-O {[%clk 0:02:06.8]} 15.
Be3 {[%clk 0:02:12.2]} 15... Bg2 {[%clk 0:01:58.5]} 16. Nxe5 {[%clk 0:02:12.2]}
16... fxe5 {[%clk 0:01:59.2]} 17. Rg1 {[%clk 0:02:11.6]} 17... Be4 {[%clk
0:02:00]} 18. f3 {[%clk 0:02:01.4]} 18... Bg6 {[%clk 0:01:54.9]} 19. O-O-O
{[%clk 0:01:50]} 19... Qa6 {[%clk 0:01:42.5]} 20. Rge1 {[%clk 0:01:43.4]} 20...
Qa5 {[%clk 0:01:36.5]} 21. a3 {[%clk 0:01:20.3]} 21... e6 {[%clk 0:01:27.5]} 22.
dxe6 {[%clk 0:01:15.4]} 22... fxe6 {[%clk 0:01:25.9]} 23. Rf1 {[%clk 0:00:48.1]}
23... Bc5 {[%clk 0:01:20.2]} 24. Bxc5 {[%clk 0:00:43.7]} 24... Qxc5 {[%clk
0:01:21.1]} 25. Qc3 {[%clk 0:00:43.6]} 25... a5 {[%clk 0:01:15.7]} 26. b4 {[%clk
0:00:40.3]} 26... axb4 {[%clk 0:01:16.6]} 27. axb4 {[%clk 0:00:40.9]} 27...
Rxd1+ {[%clk 0:01:17.5]} 28. Rxd1 {[%clk 0:00:37.1]} 28... Qf2 {[%clk
0:01:17.5]} 29. Qxe5 {[%clk 0:00:37.2]} 29... Kb8 {[%clk 0:01:12.1]} 30. g4
{[%clk 0:00:23]} 30... Qb6 {[%clk 0:01:02.5]} 31. Qc3 {[%clk 0:00:21.7]} 31...
h5 {[%clk 0:00:59.3]} 32. c5 {[%clk 0:00:21.1]} 32... Qa7 {[%clk 0:00:58.9]} 33.
Kb2 {[%clk 0:00:19.1]} 33... Qa4 {[%clk 0:00:58.7]} 34. Ra1 {[%clk 0:00:18.6]}
34... Qc6 {[%clk 0:00:58.4]} 35. Qa3 {[%clk 0:00:18]} 35... b6 {[%clk
0:00:53.4]} 36. Qa7+ {[%clk 0:00:16.9]} 36... Kc8 {[%clk 0:00:53.7]} 37. Qa8+
{[%clk 0:00:17.5]} 37... Kd7 {[%clk 0:00:52.3]} 38. Rd1+ {[%clk 0:00:16.8]}
38... Ke7 {[%clk 0:00:50.2]} 39. Qxc6 {[%clk 0:00:16.4]} 1-0

[Event "Early-Titled-Tuesday-Blitz-October-17-2023"]
[Site "Chess.com"]
[Date "2023.10.17"]
[Round "8"]
[White "Witik"]
[Black "Msb2"]
[Result "0-1"]
[WhiteElo "2825"]
[BlackElo "3064"]
[TimeControl "180+1"]
[EndTime "9:31:34 PDT"]
[Termination "Msb2 won on time"]

1. e4 {[%clk 0:02:59.4]} 1... e6 {[%clk 0:03:00.3]} 2. d3 {[%clk 0:02:59.5]}
2... d5 {[%clk 0:03:01]} 3. Qe2 {[%clk 0:03:00]} 3... Nc6 {[%clk 0:03:01.2]} 4.
Nf3 {[%clk 0:03:00.5]} 4... e5 {[%clk 0:03:01.9]} 5. c3 {[%clk 0:03:01]} 5...
Nf6 {[%clk 0:03:02]} 6. Qc2 {[%clk 0:03:01]} 6... Bd6 {[%clk 0:03:00.3]} 7. Be2
{[%clk 0:02:59.2]} 7... O-O {[%clk 0:02:59.9]} 8. Bg5 {[%clk 0:02:57.8]} 8...
dxe4 {[%clk 0:02:58]} 9. dxe4 {[%clk 0:02:58.2]} 9... h6 {[%clk 0:02:58.5]} 10.
Bh4 {[%clk 0:02:58.3]} 10... Be7 {[%clk 0:02:41.3]} 11. Nfd2 {[%clk 0:02:31.1]}
11... Ne8 {[%clk 0:02:34.4]} 12. Bg3 {[%clk 0:02:30.9]} 12... Nd6 {[%clk
0:02:34.7]} 13. O-O {[%clk 0:02:22.8]} 13... f5 {[%clk 0:02:16.8]} 14. exf5
{[%clk 0:02:06.6]} 14... Bxf5 {[%clk 0:02:17.7]} 15. Qb3+ {[%clk 0:02:06.7]}
15... Kh8 {[%clk 0:02:16.9]} 16. Na3 {[%clk 0:02:01.2]} 16... e4 {[%clk
0:02:14.8]} 17. Ndc4 {[%clk 0:01:48.4]} 17... Be6 {[%clk 0:02:11.4]} 18. Rad1
{[%clk 0:01:41.9]} 18... Qe8 {[%clk 0:01:57.9]} 19. Qc2 {[%clk 0:01:37.5]} 19...
Bf5 {[%clk 0:01:32.8]} 20. Ne3 {[%clk 0:01:24.5]} 20... Bg6 {[%clk 0:01:33.3]}
21. Nb5 {[%clk 0:01:20.7]} 21... Nxb5 {[%clk 0:01:26]} 22. Bxb5 {[%clk
0:01:21.6]} 22... a6 {[%clk 0:01:25.6]} 23. Be2 {[%clk 0:01:15.8]} 23... Bc5
{[%clk 0:01:23.8]} 24. Bxc7 {[%clk 0:01:01.2]} 24... Qf7 {[%clk 0:01:23.9]} 25.
Bg3 {[%clk 0:00:58.9]} 25... Rac8 {[%clk 0:01:19.8]} 26. Qb3 {[%clk 0:00:57.1]}
26... Qe7 {[%clk 0:01:16.2]} 27. Nd5 {[%clk 0:00:52]} 27... Qg5 {[%clk
0:01:16.6]} 28. Qxb7 {[%clk 0:00:47.2]} 28... h5 {[%clk 0:01:17]} 29. b4 {[%clk
0:00:37.3]} 29... Ba7 {[%clk 0:01:09.9]} 30. Nf4 {[%clk 0:00:24.5]} 30... Bf7
{[%clk 0:01:04.6]} 31. Rd7 {[%clk 0:00:09.3]} 31... Ne5 {[%clk 0:01:05.2]} 32.
Qxa7 {[%clk 0:00:08.3]} 32... Nxd7 {[%clk 0:01:05.7]} 33. h4 {[%clk 0:00:05.9]}
33... Qe7 {[%clk 0:01:02.7]} 34. Rd1 {[%clk 0:00:06.2]} 34... Rcd8 {[%clk
0:00:59]} 35. Bxh5 {[%clk 0:00:04.4]} 35... Bxh5 {[%clk 0:00:58.7]} 36. Nxh5
{[%clk 0:00:05.3]} 36... Qf7 {[%clk 0:00:54.2]} 37. Nf4 {[%clk 0:00:05.1]} 37...
Ne5 {[%clk 0:00:54.8]} 0-1

[Event "Early-Titled-Tuesday-Blitz-October-17-2023"]
[Site "Chess.com"]
[Date "2023.10.17"]
[Round "8"]
[White "fu24"]
[Black "Fan_Of_Chucky"]
[Result "0-1"]
[WhiteElo "2636"]
[BlackElo "2501"]
[TimeControl "180+1"]
[EndTime "9:31:36 PDT"]
[Termination "Fan_Of_Chucky won by resignation"]

1. d4 {[%clk 0:02:53.6]} 1... Nf6 {[%clk 0:02:59.2]} 2. Bg5 {[%clk 0:02:52.1]}
2... Ng8 {[%clk 0:02:56.1]} 3. e4 {[%clk 0:02:50]} 3... h6 {[%clk 0:02:53]} 4.
Bh4 {[%clk 0:02:46.3]} 4... g5 {[%clk 0:02:53.3]} 5. Bg3 {[%clk 0:02:46.4]} 5...
Bg7 {[%clk 0:02:51.5]} 6. Bc4 {[%clk 0:02:43.6]} 6... e6 {[%clk 0:02:44.8]} 7.
Nc3 {[%clk 0:02:40.5]} 7... Ne7 {[%clk 0:02:44.3]} 8. h4 {[%clk 0:02:37.4]} 8...
d5 {[%clk 0:02:40.7]} 9. exd5 {[%clk 0:02:37]} 9... exd5 {[%clk 0:02:39.1]} 10.
Bb3 {[%clk 0:02:35.3]} 10... Nf5 {[%clk 0:02:37.5]} 11. hxg5 {[%clk 0:02:33.8]}
11... Nxg3 {[%clk 0:02:18.4]} 12. fxg3 {[%clk 0:02:34.7]} 12... Qxg5 {[%clk
0:02:18.6]} 13. Qf3 {[%clk 0:02:29]} 13... c6 {[%clk 0:02:13.6]} 14. Nge2 {[%clk
0:02:28.3]} 14... Bg4 {[%clk 0:02:10.7]} 15. Qf4 {[%clk 0:02:28.3]} 15... Qxf4
{[%clk 0:02:05.3]} 16. gxf4 {[%clk 0:02:28]} 16... Nd7 {[%clk 0:02:00.6]} 17.
Kd2 {[%clk 0:02:22.8]} 17... O-O-O {[%clk 0:01:58.5]} 18. Rae1 {[%clk
0:02:22.2]} 18... Nf6 {[%clk 0:01:54.1]} 19. Ng3 {[%clk 0:02:06.1]} 19... h5
{[%clk 0:01:54]} 20. Rh4 {[%clk 0:02:02.3]} 20... Bh6 {[%clk 0:01:48.2]} 21.
Nce2 {[%clk 0:02:00.3]} 21... Rde8 {[%clk 0:01:39]} 22. c3 {[%clk 0:01:56]}
22... Re6 {[%clk 0:01:32]} 23. Bc2 {[%clk 0:01:55.7]} 23... Kc7 {[%clk 0:01:29]}
24. Bf5 {[%clk 0:01:51.7]} 24... Rxe2+ {[%clk 0:00:54.1]} 25. Rxe2 {[%clk
0:00:39.7]} 25... Bxf4+ {[%clk 0:00:52.9]} 26. Kd3 {[%clk 0:00:39.4]} 26... Bxg3
{[%clk 0:00:52.1]} 27. Bxg4 {[%clk 0:00:38.2]} 27... Bxh4 {[%clk 0:00:43.6]} 28.
Re7+ {[%clk 0:00:38.1]} 28... Kd6 {[%clk 0:00:38.1]} 29. Rxb7 {[%clk 0:00:31.5]}
29... hxg4 {[%clk 0:00:38.3]} 30. Rxa7 {[%clk 0:00:31.9]} 30... Bg5 {[%clk
0:00:29]} 31. Rxf7 {[%clk 0:00:31.1]} 31... Rh2 {[%clk 0:00:28.6]} 32. b3 {[%clk
0:00:30]} 32... Rxg2 {[%clk 0:00:28.4]} 33. c4 {[%clk 0:00:30.6]} 33... Ne4
{[%clk 0:00:21.7]} 0-1

[Event "Early-Titled-Tuesday-Blitz-October-17-2023"]
[Site "Chess.com"]
[Date "2023.10.17"]
[Round "8"]
[White "Cayse"]
[Black "Polish_fighter3000"]
[Result "0-1"]
[WhiteElo "2895"]
[BlackElo "3051"]
[TimeControl "180+1"]
[EndTime "9:31:42 PDT"]
[Termination "Polish_fighter3000 won by resignation"]

1. e4 {[%clk 0:03:00.9]} 1... e6 {[%clk 0:03:00.9]} 2. d4 {[%clk 0:03:00.3]}
2... d5 {[%clk 0:03:01.5]} 3. e5 {[%clk 0:03:00.9]} 3... c5 {[%clk 0:03:00.9]}
4. c3 {[%clk 0:03:01.1]} 4... Bd7 {[%clk 0:03:01.4]} 5. Nf3 {[%clk 0:03:00.9]}
5... a6 {[%clk 0:03:00.8]} 6. Be2 {[%clk 0:02:59.9]} 6... Bb5 {[%clk 0:02:55.8]}
7. O-O {[%clk 0:02:57.2]} 7... Bxe2 {[%clk 0:02:55.2]} 8. Qxe2 {[%clk
0:02:57.4]} 8... Nc6 {[%clk 0:02:56]} 9. Rd1 {[%clk 0:02:52.8]} 9... cxd4 {[%clk
0:02:46.9]} 10. cxd4 {[%clk 0:02:52.8]} 10... Nge7 {[%clk 0:02:47]} 11. Na3
{[%clk 0:02:51.8]} 11... Nb4 {[%clk 0:02:43.3]} 12. Nc2 {[%clk 0:02:32.3]} 12...
Nxc2 {[%clk 0:02:42.5]} 13. Qxc2 {[%clk 0:02:33.2]} 13... Rc8 {[%clk 0:02:41.8]}
14. Qd3 {[%clk 0:02:33.4]} 14... Nc6 {[%clk 0:02:36.4]} 15. Bd2 {[%clk
0:02:27.5]} 15... Be7 {[%clk 0:02:35.8]} 16. a3 {[%clk 0:02:22.1]} 16... O-O
{[%clk 0:02:35.6]} 17. Rac1 {[%clk 0:01:59.6]} 17... Qb6 {[%clk 0:02:33.4]} 18.
Rc2 {[%clk 0:01:58.7]} 18... Qb5 {[%clk 0:02:31.7]} 19. Bc3 {[%clk 0:01:28.2]}
19... Qxd3 {[%clk 0:02:25.8]} 20. Rxd3 {[%clk 0:01:29.1]} 20... Na7 {[%clk
0:02:21.4]} 21. g3 {[%clk 0:01:23.5]} 21... Rc6 {[%clk 0:02:20.5]} 22. Re2
{[%clk 0:01:10.2]} 22... Rfc8 {[%clk 0:02:18.9]} 23. Kf1 {[%clk 0:01:00.8]}
23... Nb5 {[%clk 0:02:06.1]} 24. Ba5 {[%clk 0:00:59.5]} 24... Rc1+ {[%clk
0:02:02.3]} 25. Kg2 {[%clk 0:00:53.5]} 25... R8c4 {[%clk 0:01:58.5]} 26. h4
{[%clk 0:00:46.5]} 26... Rb1 {[%clk 0:01:47.8]} 27. b3 {[%clk 0:00:32]} 27...
Rc6 {[%clk 0:01:37.1]} 28. a4 {[%clk 0:00:32.2]} 28... Na3 {[%clk 0:01:37.1]}
29. Ra2 {[%clk 0:00:30.7]} 29... b5 {[%clk 0:01:16.7]} 30. axb5 {[%clk 0:00:29]}
30... axb5 {[%clk 0:01:17.6]} 31. g4 {[%clk 0:00:24]} 31... b4 {[%clk
0:01:16.5]} 32. g5 {[%clk 0:00:21]} 32... Kf8 {[%clk 0:01:13.9]} 33. Nd2 {[%clk
0:00:18.2]} 33... Rd1 {[%clk 0:01:10.4]} 34. Kf3 {[%clk 0:00:18]} 34... Ke8
{[%clk 0:01:06.6]} 35. Ke2 {[%clk 0:00:18.2]} 35... Rh1 {[%clk 0:01:06.9]} 36.
Nf3 {[%clk 0:00:18.5]} 36... Kd7 {[%clk 0:01:05.7]} 37. Rd1 {[%clk 0:00:17.7]}
37... Rxd1 {[%clk 0:00:56.9]} 38. Kxd1 {[%clk 0:00:18.6]} 38... Ra6 {[%clk
0:00:57.1]} 39. Bxb4 {[%clk 0:00:13.3]} 39... Bxb4 {[%clk 0:00:58]} 40. Ne1
{[%clk 0:00:13.6]} 40... Ra5 {[%clk 0:00:51.1]} 41. Nd3 {[%clk 0:00:13.3]} 41...
Nb5 {[%clk 0:00:51.6]} 42. Nxb4 {[%clk 0:00:05.2]} 42... Nc3+ {[%clk 0:00:52]}
0-1

[Event "Early-Titled-Tuesday-Blitz-October-17-2023"]
[Site "Chess.com"]
[Date "2023.10.17"]
[Round "8"]
[White "AvitalBor"]
[Black "wonderfultime"]
[Result "1-0"]
[WhiteElo "2857"]
[BlackElo "2973"]
[TimeControl "180+1"]
[EndTime "9:31:42 PDT"]
[Termination "AvitalBor won by resignation"]

1. e4 {[%clk 0:03:00.9]} 1... e5 {[%clk 0:02:54.6]} 2. Nc3 {[%clk 0:02:59.8]}
2... Nc6 {[%clk 0:02:52.1]} 3. Bc4 {[%clk 0:02:59.8]} 3... Bc5 {[%clk 0:02:49]}
4. Nge2 {[%clk 0:02:57.2]} 4... Nf6 {[%clk 0:02:39.1]} 5. d3 {[%clk 0:02:57.2]}
5... d6 {[%clk 0:02:32.9]} 6. h3 {[%clk 0:02:52.8]} 6... Be6 {[%clk 0:02:31.7]}
7. O-O {[%clk 0:02:49]} 7... h6 {[%clk 0:02:24]} 8. a3 {[%clk 0:02:35.9]} 8...
O-O {[%clk 0:02:22.4]} 9. b4 {[%clk 0:02:33.2]} 9... Bb6 {[%clk 0:02:22.4]} 10.
Nd5 {[%clk 0:02:33]} 10... Bxd5 {[%clk 0:02:17.9]} 11. Bxd5 {[%clk 0:02:33.7]}
11... Nxd5 {[%clk 0:02:11.2]} 12. exd5 {[%clk 0:02:34.6]} 12... Ne7 {[%clk
0:02:11.7]} 13. c4 {[%clk 0:02:34.5]} 13... Ng6 {[%clk 0:01:56.3]} 14. Qc2
{[%clk 0:02:28.6]} 14... Bd4 {[%clk 0:01:32.7]} 15. Nxd4 {[%clk 0:02:26.4]}
15... exd4 {[%clk 0:01:33.6]} 16. Re1 {[%clk 0:02:20.9]} 16... Qf6 {[%clk
0:01:30.9]} 17. Qe2 {[%clk 0:02:14.1]} 17... Ne5 {[%clk 0:01:13.2]} 18. Bb2
{[%clk 0:02:06.4]} 18... Qg6 {[%clk 0:01:12.4]} 19. Rad1 {[%clk 0:02:02.5]}
19... Rae8 {[%clk 0:01:12.4]} 20. Bxd4 {[%clk 0:01:54.9]} 20... Nxd3 {[%clk
0:01:05.3]} 21. Qxe8 {[%clk 0:01:54.5]} 21... Rxe8 {[%clk 0:01:06.2]} 22. Rxe8+
{[%clk 0:01:54.3]} 22... Kh7 {[%clk 0:01:07.1]} 23. Be3 {[%clk 0:01:19.3]} 23...
Ne5 {[%clk 0:01:07.1]} 24. Rxe5 {[%clk 0:01:19.5]} 24... dxe5 {[%clk 0:01:07.1]}
25. c5 {[%clk 0:01:17.7]} 25... Qc2 {[%clk 0:00:39]} 26. Rd2 {[%clk 0:01:17.3]}
26... Qa4 {[%clk 0:00:38.1]} 27. d6 {[%clk 0:01:15.6]} 27... cxd6 {[%clk
0:00:39]} 28. cxd6 {[%clk 0:01:16.3]} 28... Qd7 {[%clk 0:00:39.6]} 29. Bxa7
{[%clk 0:01:16.1]} 29... Kg6 {[%clk 0:00:38]} 30. Bb6 {[%clk 0:01:12.4]} 30...
Kf6 {[%clk 0:00:38.1]} 31. a4 {[%clk 0:01:11.2]} 31... Ke6 {[%clk 0:00:38.3]}
32. b5 {[%clk 0:01:10.6]} 32... Qc8 {[%clk 0:00:36]} 33. d7 {[%clk 0:00:58.6]}
33... Qc1+ {[%clk 0:00:35.4]} 34. Kh2 {[%clk 0:00:58.7]} 34... Qxd2 {[%clk
0:00:31]} 35. d8=Q {[%clk 0:00:57.5]} 35... Qf4+ {[%clk 0:00:31.9]} 36. g3
{[%clk 0:00:57.4]} 36... Qxa4 {[%clk 0:00:32.8]} 37. Qe8+ {[%clk 0:00:50.1]}
37... Kf6 {[%clk 0:00:33.1]} 38. Bd8+ {[%clk 0:00:48.5]} 38... Kg6 {[%clk
0:00:33.7]} 39. Qxe5 {[%clk 0:00:48.1]} 39... f6 {[%clk 0:00:26.9]} 40. Qe8+
{[%clk 0:00:43.2]} 40... Kh7 {[%clk 0:00:27]} 41. Qd7 {[%clk 0:00:43.2]} 41...
Qe4 {[%clk 0:00:26.3]} 42. Bxf6 {[%clk 0:00:37.7]} 1-0

[Event "Early-Titled-Tuesday-Blitz-October-17-2023"]
[Site "Chess.com"]
[Date "2023.10.17"]
[Round "8"]
[White "Journey_to_GrandMaster_YT"]
[Black "Flaccidmoves"]
[Result "1-0"]
[WhiteElo "2614"]
[BlackElo "2415"]
[TimeControl "180+1"]
[EndTime "9:31:43 PDT"]
[Termination "Journey_to_GrandMaster_YT won on time"]

1. Nf3 {[%clk 0:03:00.9]} 1... Nf6 {[%clk 0:02:59.9]} 2. g3 {[%clk 0:03:01]}
2... g6 {[%clk 0:03:00.5]} 3. Bg2 {[%clk 0:03:01.9]} 3... Bg7 {[%clk 0:03:00.9]}
4. O-O {[%clk 0:03:02.8]} 4... O-O {[%clk 0:03:01.4]} 5. d4 {[%clk 0:03:03.4]}
5... d6 {[%clk 0:03:02]} 6. b3 {[%clk 0:03:03.7]} 6... a5 {[%clk 0:02:59.7]} 7.
Bb2 {[%clk 0:03:02.8]} 7... a4 {[%clk 0:02:58.2]} 8. c4 {[%clk 0:03:03.1]} 8...
axb3 {[%clk 0:02:38.8]} 9. axb3 {[%clk 0:03:04]} 9... Rxa1 {[%clk 0:02:38.9]}
10. Bxa1 {[%clk 0:03:04.9]} 10... Nc6 {[%clk 0:02:34]} 11. Nc3 {[%clk
0:03:05.1]} 11... e5 {[%clk 0:02:19.8]} 12. dxe5 {[%clk 0:03:03.1]} 12... Nxe5
{[%clk 0:02:18.6]} 13. Nxe5 {[%clk 0:03:00.8]} 13... dxe5 {[%clk 0:02:19.5]} 14.
Nb5 {[%clk 0:02:58.7]} 14... Qe7 {[%clk 0:02:10.9]} 15. Na7 {[%clk 0:02:48.6]}
15... c6 {[%clk 0:02:04.1]} 16. Nxc8 {[%clk 0:02:47.4]} 16... Rxc8 {[%clk
0:02:05]} 17. Bc3 {[%clk 0:02:45.3]} 17... e4 {[%clk 0:01:57.9]} 18. Qa1 {[%clk
0:02:44.1]} 18... e3 {[%clk 0:01:56]} 19. f3 {[%clk 0:02:34.8]} 19... Rd8 {[%clk
0:01:48.3]} 20. Bh3 {[%clk 0:02:31]} 20... Nh5 {[%clk 0:01:43.3]} 21. Bxg7
{[%clk 0:02:28.8]} 21... Nxg7 {[%clk 0:01:44.2]} 22. Rd1 {[%clk 0:02:28.6]}
22... h5 {[%clk 0:01:22.5]} 23. Rd4 {[%clk 0:02:14.6]} 23... Rxd4 {[%clk
0:00:59.2]} 24. Qxd4 {[%clk 0:02:14.2]} 24... Ne8 {[%clk 0:00:59.5]} 25. f4
{[%clk 0:01:44.8]} 25... Nf6 {[%clk 0:00:56.3]} 26. f5 {[%clk 0:01:43.5]} 26...
g5 {[%clk 0:00:50.1]} 27. Bg2 {[%clk 0:01:43.1]} 27... Ng4 {[%clk 0:00:39.5]}
28. h3 {[%clk 0:01:42.1]} 28... Nf6 {[%clk 0:00:38.9]} 29. Bf3 {[%clk
0:01:41.7]} 29... Kf8 {[%clk 0:00:26.3]} 30. c5 {[%clk 0:01:39.9]} 30... Kg8
{[%clk 0:00:25.1]} 31. b4 {[%clk 0:01:39.2]} 31... Kf8 {[%clk 0:00:24.9]} 32.
Bxh5 {[%clk 0:01:18.4]} 32... Qc7 {[%clk 0:00:18.5]} 33. Kh2 {[%clk 0:00:59.2]}
33... Nxh5 {[%clk 0:00:04.1]} 34. Qh8+ {[%clk 0:00:59.6]} 34... Ke7 {[%clk
0:00:04.7]} 35. Qxh5 {[%clk 0:01:00.1]} 35... Qe5 {[%clk 0:00:02.3]} 36. Qxg5+
{[%clk 0:00:59.9]} 36... f6 {[%clk 0:00:03]} 37. Qf4 {[%clk 0:00:57.2]} 37...
Qc3 {[%clk 0:00:01.5]} 38. Qe4+ {[%clk 0:00:55.6]} 38... Kf7 {[%clk 0:00:01.9]}
39. Kg2 {[%clk 0:00:53.1]} 39... Qd2 {[%clk 0:00:02.1]} 40. Kf3 {[%clk
0:00:52.8]} 40... Qe1 {[%clk 0:00:02.4]} 41. Qxe3 {[%clk 0:00:51.7]} 41... Qh1+
{[%clk 0:00:02]} 42. Kg4 {[%clk 0:00:51.4]} 42... Kg7 {[%clk 0:00:02.1]} 43.
Qe7+ {[%clk 0:00:51.2]} 1-0

[Event "Early-Titled-Tuesday-Blitz-October-17-2023"]
[Site "Chess.com"]
[Date "2023.10.17"]
[Round "8"]
[White "SAInt_666"]
[Black "jaskol95"]
[Result "1-0"]
[WhiteElo "2774"]
[BlackElo "2605"]
[TimeControl "180+1"]
[EndTime "9:31:47 PDT"]
[Termination "SAInt_666 won by checkmate"]

1. e4 {[%clk 0:03:00.9]} 1... d5 {[%clk 0:02:59]} 2. exd5 {[%clk 0:03:00.8]}
2... Nf6 {[%clk 0:02:59.3]} 3. d4 {[%clk 0:02:49.6]} 3... Bg4 {[%clk 0:02:57.6]}
4. f3 {[%clk 0:02:48.5]} 4... Bf5 {[%clk 0:02:58]} 5. c4 {[%clk 0:02:47.9]} 5...
e6 {[%clk 0:02:57]} 6. g4 {[%clk 0:02:47.5]} 6... Bg6 {[%clk 0:02:57.4]} 7. Nc3
{[%clk 0:02:47.1]} 7... exd5 {[%clk 0:02:57.8]} 8. g5 {[%clk 0:02:47.7]} 8...
Nfd7 {[%clk 0:02:58]} 9. cxd5 {[%clk 0:02:48.1]} 9... Bd6 {[%clk 0:02:53.9]} 10.
Bd3 {[%clk 0:02:11.4]} 10... O-O {[%clk 0:02:39.8]} 11. Nge2 {[%clk 0:02:10.8]}
11... c6 {[%clk 0:02:39.5]} 12. h4 {[%clk 0:02:02.9]} 12... Bh5 {[%clk
0:02:22.8]} 13. Qc2 {[%clk 0:01:47.9]} 13... g6 {[%clk 0:02:14.7]} 14. Bd2
{[%clk 0:01:43.1]} 14... cxd5 {[%clk 0:02:11.9]} 15. O-O-O {[%clk 0:01:34]}
15... Nc6 {[%clk 0:02:10.2]} 16. a3 {[%clk 0:01:32.1]} 16... Rc8 {[%clk
0:02:07.1]} 17. Rhf1 {[%clk 0:01:26.4]} 17... Nb6 {[%clk 0:02:00]} 18. Kb1
{[%clk 0:01:24.4]} 18... Nc4 {[%clk 0:01:48]} 19. Bxc4 {[%clk 0:01:23]} 19...
dxc4 {[%clk 0:01:48.4]} 20. Ne4 {[%clk 0:01:23.9]} 20... b5 {[%clk 0:01:45.4]}
21. d5 {[%clk 0:01:17.7]} 21... Ne5 {[%clk 0:01:41.5]} 22. Bc3 {[%clk 0:01:18]}
22... a5 {[%clk 0:01:28.7]} 23. f4 {[%clk 0:01:12.8]} 23... Ng4 {[%clk
0:01:23.2]} 24. Nd4 {[%clk 0:00:58.9]} 24... b4 {[%clk 0:01:17.1]} 25. Nc6
{[%clk 0:00:54.9]} 25... Qc7 {[%clk 0:01:09.4]} 26. Bd4 {[%clk 0:00:47.1]} 26...
bxa3 {[%clk 0:00:59.7]} 27. Rde1 {[%clk 0:00:45.5]} 27... axb2 {[%clk
0:00:55.6]} 28. Nxd6 {[%clk 0:00:43.5]} 28... Qxd6 {[%clk 0:00:55.1]} 29. Ne7+
{[%clk 0:00:44.1]} 29... Qxe7 {[%clk 0:00:53.5]} 30. Rxe7 {[%clk 0:00:45]} 30...
a4 {[%clk 0:00:49]} 31. Ra7 {[%clk 0:00:42.4]} 31... c3 {[%clk 0:00:48.3]} 32.
Re1 {[%clk 0:00:33.2]} 32... Rfe8 {[%clk 0:00:46.3]} 33. Rxe8+ {[%clk
0:00:29.9]} 33... Rxe8 {[%clk 0:00:46.6]} 34. Qe4 {[%clk 0:00:27.1]} 34... Rc8
{[%clk 0:00:33]} 35. Rc7 {[%clk 0:00:27.3]} 35... Ra8 {[%clk 0:00:32]} 36. d6
{[%clk 0:00:26.3]} 36... c2+ {[%clk 0:00:29.6]} 37. Rxc2 {[%clk 0:00:23.2]}
37... Rd8 {[%clk 0:00:29.8]} 38. Qe7 {[%clk 0:00:20.5]} 38... Rf8 {[%clk
0:00:29.5]} 39. Qxf8+ {[%clk 0:00:19.7]} 39... Kxf8 {[%clk 0:00:30.4]} 40. Rc8#
{[%clk 0:00:20.2]} 1-0